{"text_format":"2","workbook":"xlsx","n_sheets":3,"sheets":["Záradék","Összesítő","Vizesblokk kialakítása"],"not_rendered":{"charts":0,"images":0,"macros":0,"external_links":0,"defined_names":0,"comments":0,"pivot_tables":0},"unopened":[],"bounds":{"document_bytes":16777216,"sheet_cells":100000,"run_cost":"one","rows_first":2000,"rows_last":500,"rows_between":2000,"halvings":0,"cell_chars":16384,"cell_head_chars":4096},"cells_cut":0,"cells_raw":0,"read":"whole","date_system":"1900"}

{"sheet":"Záradék","index":0,"n_rows":34,"n_cols":4,"rows_kept":34,"cut":false,"hidden":false,"merged":[[29,2,29,3],[33,1,33,2],[21,0,21,3],[25,2,25,3],[28,2,28,3],[26,2,26,3],[27,2,27,3]]}
["SZTE GMF"]
{"$rows_empty":7}
["Név :  SZTE ÁJTK                                ",null,"                                       "]
["                                       ",null,"                                       "]
["Cím :  Szeged, Bocskai u. 10-12.                               ",null," Kelt:      20.. év...........hó...nap "]
["                                       ",null," Szám         :.............           "]
["                                       ",null," KSH besorolás:.....................   "]
["                                       ",null," Teljesítés:20.. év...........hó...nap "]
["A munka leírása:                       ",null," Készítette   :.....................   "]
["I. emelet Női mosdó átalakítása"]
["Gépészet"]
["                                                                              "]
["Készült:                                                                      "]
[]
[]
["Költségvetés főösszesítő"]
["Megnevezés",null,"Anyagköltség","Díjköltség"]
["1. Építmény közvetlen költségei",null,{"$f":"ROUND(SUM(Összesítő!B2:B2),0)","v":0},{"$f":"ROUND(SUM(Összesítő!C2:C2),0)","v":0}]
["1.1 Közvetlen önköltség összesen",null,{"$f":"ROUND(C24,0)","v":0},{"$f":"ROUND(D24,0)","v":0}]
["2.1 Közvetlen költség összesen",null,{"$f":"ROUND(C25+D25,0)","v":0}]
["2.2 Tartalékkeret",0.05,{"$f":"ROUND(C26*B27,0)","v":0}]
["2.3 ÁFA vetítési alap",null,{"$f":"SUM(C26:C27)","v":0}]
["2.2 Áfa",0.27,{"$f":"ROUND(C28*B29,0)","v":0}]
["3.  A munka ára",null,{"$f":"ROUND(C28+C29,0)","v":0}]
[]
[]
[]
[null,"Aláírás"]

{"sheet":"Összesítő","index":1,"n_rows":3,"n_cols":3,"rows_kept":3,"cut":false,"hidden":false,"merged":[]}
["Munkanem megnevezése","Anyag összege","Díj összege"]
["Épületgépészeti szerelvények és berendezések szerelése",{"$f":"'Vizesblokk kialakítása'!G28","v":0},{"$f":"'Vizesblokk kialakítása'!H28","v":0}]
["Összesen:",{"$f":"ROUND(SUM(B2:B2),0)","v":0},{"$f":"ROUND(SUM(C2:C2), 0)","v":0}]

{"sheet":"Vizesblokk kialakítása","index":2,"n_rows":28,"n_cols":8,"rows_kept":28,"cut":false,"hidden":false,"merged":[]}
["Ssz.","Tétel szövege","Menny.","Egység","Anyag egységár","Díj egységre","Anyag összesen","Díj összesen"]
[1,"Szaniter kerámia WC csésze, padlóra szerelhető kivitelben\na szükséges szerelési tartozékokkal, továbbá\n1 db WC kefe tartóval\n1 db WC papír tartóval\n1 db műanyag öblítőtartállyal,\n1 db MOFÉM 747/lh falikoronggal,\n1 db MOFÉM 206/ghs sarokszeleppel,\n1 db FIL-NOX flexibilis vízbekötőcsővel,\n1 db WC ülőkével,\nfelszerelve,\nV&B ALFÖLDI-Bázis típusú,\nSANIT 930 sz. műanyag öblítőtartállyal\nmélyöblítésű kivitelben\nalsó kifolyású,fehér  . \n\n",1,"db",0,0,{"$f":"C2*E2","v":0},{"$f":"ROUND(C2*F2, 0)","v":0}]
[]
[2,"Kézmosó berendezés elhelyezése és bekötése, lefolyószeleppel, csaptelep nélkül (meglévő csaptelep áthelyezése) elzáró csempeszeleppel komplett Alföldi Bázis 40x25 cm kézmosó, csaplyukkal ",1,"db",0,0,{"$f":"C4*E4","v":0},{"$f":"ROUND(C4*F4, 0)","v":0}]
[]
[3,"Meglévő vizes berendezési tárgyak elhelyezése, tükör",1,"db",0,0,0,0]
[]
[4,"Meglévő vizes berendezési tárgyak elhelyezése, piperepolc",1,"db",0,0,0,0]
[]
[5,"Meglévő vizes berendezési tárgyak elhelyezése, adagolók, kéztörlő",1,"db",0,0,0,0]
[]
[6,"Rákötés a meglévő szennyvízhálózatra",1,"db",0,0,0,0]
[]
[7,"Rákötés a meglévő vízhálózatra",1,"db",0,0,0,0]
[]
[8,"Ivóvíz vezeték, ötrétegű cső szerelése, idomokkal, kötésekkel",1,"m",0,0,0,0]
[]
[9,"Szennyvízvezeték PVC cső szerelése(f40) idomokkal",1,"m",0,0,0,0]
[]
[10,"Szennyvízvezeték PVC cső szerelése(f110) idomokkal",4,"m",0,0,0,0]
[]
[11,"Használaton kivüli meglévő gépészeti vezetékekek visszabontása szakszerű lezárása",1,"költség",0,0,0,0]
[]
[12,"Használaton kivüli meglévő gépészeti berendezési tárgyak visszabontása szakszerűen ",1,"költség",0,0,0,0]
[]
[13,"Vízmintavételi jegyzőkönyv",1,"db",0,0,0,0]
[]
[null,"Munkanem összesen:",{"$nulls":4},{"$f":"SUM(G2:G27)","v":0},{"$f":"SUM(H2:H27)","v":0}]